[Event "Early-Titled-Tuesday-Blitz-December-26-2023"]
[Site "Chess.com"]
[Date "2023.12.26"]
[Round "11"]
[White "rachidhuilda"]
[Black "AjedrezInteligente"]
[Result "1/2-1/2"]
[WhiteElo "2362"]
[BlackElo "2506"]
[TimeControl "180+1"]
[EndTime "10:05:22 PST"]
[Termination "Game drawn by stalemate"]

1. d4 {[%clk 0:03:00.9]} 1... Nf6 {[%clk 0:02:57.2]} 2. Bg5 {[%clk 0:03:00.7]}
2... e6 {[%clk 0:02:52.6]} 3. e4 {[%clk 0:03:00.1]} 3... c5 {[%clk 0:02:53.3]}
4. d5 {[%clk 0:02:58.9]} 4... d6 {[%clk 0:02:53.1]} 5. Nc3 {[%clk 0:02:57.9]}
5... Be7 {[%clk 0:02:52.9]} 6. Bb5+ {[%clk 0:02:57.8]} 6... Bd7 {[%clk 0:02:53]}
7. a4 {[%clk 0:02:54.7]} 7... O-O {[%clk 0:02:52.9]} 8. Nf3 {[%clk 0:02:54.6]}
8... a6 {[%clk 0:02:52.9]} 9. Bxd7 {[%clk 0:02:52.3]} 9... Nbxd7 {[%clk
0:02:53.5]} 10. dxe6 {[%clk 0:02:53]} 10... fxe6 {[%clk 0:02:53.8]} 11. e5
{[%clk 0:02:52.6]} 11... Nxe5 {[%clk 0:02:53]} 12. Nxe5 {[%clk 0:02:52.2]} 12...
dxe5 {[%clk 0:02:53.9]} 13. O-O {[%clk 0:02:51.7]} 13... Nd5 {[%clk 0:02:53.3]}
14. Bxe7 {[%clk 0:02:49.1]} 14... Qxe7 {[%clk 0:02:53.1]} 15. Nxd5 {[%clk
0:02:44.4]} 15... exd5 {[%clk 0:02:53.7]} 16. Qxd5+ {[%clk 0:02:44.8]} 16... Kh8
{[%clk 0:02:54.3]} 17. Rfe1 {[%clk 0:02:37.4]} 17... Rae8 {[%clk 0:02:45.3]} 18.
Rad1 {[%clk 0:02:31.6]} 18... Qh4 {[%clk 0:02:39.8]} 19. g3 {[%clk 0:02:20.9]}
19... Qb4 {[%clk 0:02:39.7]} 20. Rxe5 {[%clk 0:01:47.2]} 20... h6 {[%clk
0:02:06.6]} 21. Rxe8 {[%clk 0:01:30.8]} 21... Rxe8 {[%clk 0:02:07.5]} 22. Qf7
{[%clk 0:01:27.1]} 22... Rg8 {[%clk 0:02:07.2]} 23. Qb3 {[%clk 0:01:20.2]} 23...
Qxb3 {[%clk 0:01:45.5]} 24. cxb3 {[%clk 0:01:20]} 24... Re8 {[%clk 0:01:45.4]}
25. Kf1 {[%clk 0:01:18.1]} 25... Re4 {[%clk 0:01:41.9]} 26. Rd3 {[%clk
0:01:07.7]} 26... Kh7 {[%clk 0:01:34.9]} 27. Rc3 {[%clk 0:01:07.3]} 27... b6
{[%clk 0:01:34.9]} 28. a5 {[%clk 0:01:06.8]} 28... bxa5 {[%clk 0:01:34.5]} 29.
Rxc5 {[%clk 0:01:06.9]} 29... Rb4 {[%clk 0:01:35.3]} 30. Rxa5 {[%clk 0:01:06.7]}
30... Rxb3 {[%clk 0:01:35.7]} 31. Rxa6 {[%clk 0:01:05.7]} 31... Rxb2 {[%clk
0:01:35.9]} 32. Kg2 {[%clk 0:01:06.1]} 32... Rc2 {[%clk 0:01:35.5]} 33. h4
{[%clk 0:01:06.2]} 33... Rb2 {[%clk 0:01:35.9]} 34. g4 {[%clk 0:01:05.4]} 34...
Rc2 {[%clk 0:01:36.2]} 35. Kg3 {[%clk 0:01:05.1]} 35... Rb2 {[%clk 0:01:36.7]}
36. f3 {[%clk 0:01:05.6]} 36... Rc2 {[%clk 0:01:36.9]} 37. g5 {[%clk 0:01:04.3]}
37... hxg5 {[%clk 0:01:36.2]} 38. hxg5 {[%clk 0:01:04.6]} 38... g6 {[%clk
0:01:35.3]} 39. Kf4 {[%clk 0:00:59.9]} 39... Re2 {[%clk 0:01:34.8]} 40. Ra7+
{[%clk 0:00:56.9]} 40... Kg8 {[%clk 0:01:34.7]} 41. Rc7 {[%clk 0:00:55.3]} 41...
Kf8 {[%clk 0:01:34.3]} 42. Rc6 {[%clk 0:00:51.5]} 42... Kf7 {[%clk 0:01:34.4]}
43. Rc7+ {[%clk 0:00:51.6]} 43... Kf8 {[%clk 0:01:34.5]} 44. Rc5 {[%clk
0:00:51.4]} 44... Kf7 {[%clk 0:01:34.3]} 45. Re5 {[%clk 0:00:51.4]} 45... Ra2
{[%clk 0:01:32.6]} 46. Rb5 {[%clk 0:00:50.2]} 46... Re2 {[%clk 0:01:31.9]} 47.
Rb6 {[%clk 0:00:47.6]} 47... Re1 {[%clk 0:01:30.8]} 48. Rf6+ {[%clk 0:00:47.8]}
48... Kg7 {[%clk 0:01:30.6]} 49. Ra6 {[%clk 0:00:45.8]} 49... Kf7 {[%clk
0:01:29.8]} 50. Ra4 {[%clk 0:00:44.3]} 50... Re2 {[%clk 0:01:28.7]} 51. Re4
{[%clk 0:00:44.7]} 51... Ra2 {[%clk 0:01:28.3]} 52. Kg4 {[%clk 0:00:41.2]} 52...
Rb2 {[%clk 0:01:27.5]} 53. Rf4+ {[%clk 0:00:41.4]} 53... Kg7 {[%clk 0:01:27.2]}
54. Ra4 {[%clk 0:00:41.6]} 54... Kf7 {[%clk 0:01:26.9]} 55. Ra7+ {[%clk
0:00:41]} 55... Kf8 {[%clk 0:01:27.2]} 56. Kf4 {[%clk 0:00:41.2]} 56... Re2
{[%clk 0:01:26.6]} 57. Rb7 {[%clk 0:00:39.5]} 57... Kg8 {[%clk 0:01:26]} 58. Kg4
{[%clk 0:00:36.6]} 58... Kf8 {[%clk 0:01:24.8]} 59. f4 {[%clk 0:00:36.2]} 59...
Re3 {[%clk 0:01:23.7]} 60. f5 {[%clk 0:00:29.5]} 60... Re4+ {[%clk 0:01:23.6]}
61. Kf3 {[%clk 0:00:27.9]} 61... gxf5 {[%clk 0:01:23.2]} 62. Rb5 {[%clk
0:00:28]} 62... Kg7 {[%clk 0:01:19.1]} 63. Rxf5 {[%clk 0:00:27.6]} 63... Ra4
{[%clk 0:01:19.8]} 64. Rf4 {[%clk 0:00:26.5]} 64... Rxf4+ {[%clk 0:01:15.5]} 65.
Kxf4 {[%clk 0:00:27]} 65... Kg6 {[%clk 0:01:16.2]} 66. Kg4 {[%clk 0:00:27.2]}
66... Kg7 {[%clk 0:01:16.6]} 67. Kf5 {[%clk 0:00:27.3]} 67... Kf7 {[%clk
0:01:17.1]} 68. Ke5 {[%clk 0:00:25.4]} 68... Kg6 {[%clk 0:01:17.3]} 69. Kf4
{[%clk 0:00:26.3]} 69... Kg7 {[%clk 0:01:17.9]} 70. Kf5 {[%clk 0:00:26.8]} 70...
Kf7 {[%clk 0:01:18.5]} 71. g6+ {[%clk 0:00:27.1]} 71... Kg7 {[%clk 0:01:19]} 72.
Kg5 {[%clk 0:00:28]} 72... Kg8 {[%clk 0:01:19.5]} 73. Kh5 {[%clk 0:00:28.1]}
73... Kg7 {[%clk 0:01:19.8]} 74. Kg5 {[%clk 0:00:28.1]} 74... Kg8 {[%clk
0:01:20.7]} 75. Kf6 {[%clk 0:00:28.2]} 75... Kf8 {[%clk 0:01:21]} 76. Kg5 {[%clk
0:00:28.3]} 76... Kg7 {[%clk 0:01:21.9]} 77. Kh5 {[%clk 0:00:28.5]} 77... Kg8
{[%clk 0:01:22.4]} 78. Kh6 {[%clk 0:00:29.4]} 78... Kh8 {[%clk 0:01:22.9]} 79.
g7+ {[%clk 0:00:29.6]} 79... Kg8 {[%clk 0:01:23.1]} 80. Kg6 {[%clk 0:00:29.7]}
1/2-1/2

[Event "Early-Titled-Tuesday-Blitz-December-26-2023"]
[Site "Chess.com"]
[Date "2023.12.26"]
[Round "11"]
[White "secrethawk1"]
[Black "Barbix1"]
[Result "0-1"]
[WhiteElo "2446"]
[BlackElo "2312"]
[TimeControl "180+1"]
[EndTime "10:05:27 PST"]
[Termination "Barbix1 won by resignation"]

1. d4 {[%clk 0:03:00.9]} 1... Nf6 {[%clk 0:02:57.6]} 2. Bf4 {[%clk 0:02:54.2]}
2... d5 {[%clk 0:02:55.6]} 3. e3 {[%clk 0:02:42.1]} 3... c5 {[%clk 0:02:49]} 4.
c3 {[%clk 0:02:41.7]} 4... Nc6 {[%clk 0:02:47.9]} 5. Nd2 {[%clk 0:02:37.3]} 5...
Bf5 {[%clk 0:02:18.9]} 6. Qb3 {[%clk 0:02:26.5]} 6... Qd7 {[%clk 0:02:18.5]} 7.
Ngf3 {[%clk 0:02:21.8]} 7... e6 {[%clk 0:02:03.1]} 8. Bb5 {[%clk 0:02:18.5]}
8... c4 {[%clk 0:01:48.5]} 9. Qd1 {[%clk 0:02:16.7]} 9... Bd6 {[%clk 0:01:48.5]}
10. Ne5 {[%clk 0:02:11.9]} 10... Bxe5 {[%clk 0:01:48.4]} 11. Bxe5 {[%clk
0:02:10.7]} 11... a6 {[%clk 0:01:38.2]} 12. Ba4 {[%clk 0:02:08.2]} 12... b5
{[%clk 0:01:35.7]} 13. Bc2 {[%clk 0:02:07.6]} 13... Bxc2 {[%clk 0:01:36]} 14.
Qxc2 {[%clk 0:02:07.3]} 14... O-O {[%clk 0:01:33.1]} 15. Bxf6 {[%clk 0:02:06.6]}
15... gxf6 {[%clk 0:01:33.6]} 16. f4 {[%clk 0:02:07]} 16... f5 {[%clk
0:01:15.6]} 17. Rg1 {[%clk 0:02:01.7]} 17... Qe7 {[%clk 0:01:12.5]} 18. Nf3
{[%clk 0:01:58.4]} 18... Kh8 {[%clk 0:01:10.3]} 19. h3 {[%clk 0:01:56.6]} 19...
Rg8 {[%clk 0:01:00.9]} 20. g4 {[%clk 0:01:54.5]} 20... fxg4 {[%clk 0:00:58.4]}
21. hxg4 {[%clk 0:01:55.4]} 21... f6 {[%clk 0:00:52.8]} 22. O-O-O {[%clk
0:01:53.6]} 22... b4 {[%clk 0:00:53.1]} 23. f5 {[%clk 0:01:45.1]} 23... bxc3
{[%clk 0:00:48.7]} 24. fxe6 {[%clk 0:01:41.7]} 24... cxb2+ {[%clk 0:00:45.8]}
25. Kb1 {[%clk 0:01:40]} 25... Qa3 {[%clk 0:00:23.8]} 26. Rh1 {[%clk 0:01:36.5]}
26... Rg7 {[%clk 0:00:18.7]} 27. g5 {[%clk 0:01:31.7]} 27... Nb4 {[%clk
0:00:13.3]} 28. Qxb2 {[%clk 0:01:30.1]} 28... Qxb2+ {[%clk 0:00:12.7]} 29. Kxb2
{[%clk 0:01:31]} 29... fxg5 {[%clk 0:00:12.3]} 30. Ne5 {[%clk 0:01:29.4]} 30...
Nd3+ {[%clk 0:00:11.1]} 31. Nxd3 {[%clk 0:01:25.2]} 31... cxd3 {[%clk 0:00:12]}
32. Rxd3 {[%clk 0:01:25.8]} 32... Re8 {[%clk 0:00:11.4]} 33. Rh6 {[%clk
0:01:24]} 33... Rge7 {[%clk 0:00:11.1]} 34. Ra3 {[%clk 0:01:20.2]} 34... Rxe6
{[%clk 0:00:10.5]} 35. Rxa6 {[%clk 0:01:19.8]} 35... Rxh6 {[%clk 0:00:08.1]} 36.
Rxh6 {[%clk 0:01:17.6]} 36... Rxe3 {[%clk 0:00:08.8]} 37. Rd6 {[%clk 0:01:16.6]}
37... h5 {[%clk 0:00:04.1]} 38. Rxd5 {[%clk 0:01:13.1]} 38... Rg3 {[%clk
0:00:04.5]} 39. a4 {[%clk 0:01:10.8]} 39... h4 {[%clk 0:00:04.4]} 40. Rd6 {[%clk
0:01:09.3]} 40... Kg7 {[%clk 0:00:02.6]} 41. Re6 {[%clk 0:01:06.8]} 41... h3
{[%clk 0:00:02.3]} 42. Re1 {[%clk 0:01:06.1]} 42... h2 {[%clk 0:00:02.7]} 43.
Rh1 {[%clk 0:01:04.9]} 43... Rg2+ {[%clk 0:00:03]} 44. Kb3 {[%clk 0:01:04]}
44... g4 {[%clk 0:00:03.4]} 45. a5 {[%clk 0:01:02.8]} 45... g3 {[%clk
0:00:03.9]} 46. a6 {[%clk 0:01:02.7]} 46... Rf2 {[%clk 0:00:03.4]} 47. a7 {[%clk
0:01:02.5]} 47... Rf8 {[%clk 0:00:03.5]} 48. Rf1 {[%clk 0:00:47.5]} 48... Ra8
{[%clk 0:00:03.6]} 49. Rf3 {[%clk 0:00:46.7]} 49... h1=Q {[%clk 0:00:02.7]} 50.
Rxg3+ {[%clk 0:00:47.6]} 50... Kf6 {[%clk 0:00:02.8]} 0-1

[Event "Early-Titled-Tuesday-Blitz-December-26-2023"]
[Site "Chess.com"]
[Date "2023.12.26"]
[Round "11"]
[White "MrrRefrao"]
[Black "Kotofeyca"]
[Result "1-0"]
[WhiteElo "2545"]
[BlackElo "2416"]
[TimeControl "180+1"]
[EndTime "10:05:43 PST"]
[Termination "MrrRefrao won by checkmate"]

1. Nf3 {[%clk 0:01:13.6]} 1... d5 {[%clk 0:02:46.4]} 2. g3 {[%clk 0:01:14.5]}
2... c6 {[%clk 0:02:46.6]} 3. Bg2 {[%clk 0:01:15.4]} 3... Bg4 {[%clk 0:02:47.1]}
4. O-O {[%clk 0:01:15.2]} 4... Nd7 {[%clk 0:02:47.6]} 5. h3 {[%clk 0:01:15.6]}
5... Bh5 {[%clk 0:02:47.4]} 6. d3 {[%clk 0:01:15.5]} 6... e5 {[%clk 0:02:47.7]}
7. Qe1 {[%clk 0:01:16.1]} 7... Ngf6 {[%clk 0:02:47.2]} 8. e4 {[%clk 0:01:16.6]}
8... dxe4 {[%clk 0:02:47.5]} 9. dxe4 {[%clk 0:01:17.4]} 9... Bc5 {[%clk
0:02:47.8]} 10. b4 {[%clk 0:01:15.3]} 10... Bb6 {[%clk 0:02:45.9]} 11. Nh4
{[%clk 0:01:14.3]} 11... O-O {[%clk 0:02:35.4]} 12. Nf5 {[%clk 0:01:08.6]} 12...
a5 {[%clk 0:02:31.4]} 13. b5 {[%clk 0:01:03.5]} 13... cxb5 {[%clk 0:02:26.2]}
14. Be3 {[%clk 0:01:00.5]} 14... Bxe3 {[%clk 0:02:14]} 15. Qxe3 {[%clk
0:01:01.4]} 15... Qb6 {[%clk 0:02:09.8]} 16. Nc3 {[%clk 0:00:49.7]} 16... b4
{[%clk 0:02:04.5]} 17. Nd5 {[%clk 0:00:28.7]} 17... Nxd5 {[%clk 0:02:03.6]} 18.
Qg5 {[%clk 0:00:27.7]} 18... Bg6 {[%clk 0:01:56.5]} 19. exd5 {[%clk 0:00:23.5]}
19... Qc5 {[%clk 0:01:29.9]} 20. h4 {[%clk 0:00:15.4]} 20... Qxc2 {[%clk
0:01:22.4]} 21. Ne7+ {[%clk 0:00:13.2]} 21... Kh8 {[%clk 0:01:22.4]} 22. Rac1
{[%clk 0:00:11.1]} 22... Qxa2 {[%clk 0:01:11.6]} 23. h5 {[%clk 0:00:11.2]} 23...
h6 {[%clk 0:00:54.1]} 24. Nxg6+ {[%clk 0:00:11.8]} 24... fxg6 {[%clk 0:00:51.8]}
25. Qxg6 {[%clk 0:00:12.4]} 25... Rf6 {[%clk 0:00:45.2]} 26. Qg4 {[%clk
0:00:12.4]} 26... Rd8 {[%clk 0:00:23]} 27. Rc7 {[%clk 0:00:11.7]} 27... Rf7
{[%clk 0:00:21.9]} 28. Qg6 {[%clk 0:00:10.4]} 28... Kg8 {[%clk 0:00:20.3]} 29.
Be4 {[%clk 0:00:08.9]} 29... Qd2 {[%clk 0:00:14.8]} 30. Qh7+ {[%clk 0:00:08.6]}
30... Kf8 {[%clk 0:00:15.4]} 31. Bg6 {[%clk 0:00:05.9]} 31... Qg5 {[%clk
0:00:11.7]} 32. Bxf7 {[%clk 0:00:04.9]} 32... Kxf7 {[%clk 0:00:12.6]} 33. d6
{[%clk 0:00:05]} 33... b3 {[%clk 0:00:11.9]} 34. Qe4 {[%clk 0:00:05.4]} 34... b6
{[%clk 0:00:10.8]} 35. Qb7 {[%clk 0:00:05.7]} 35... Qf5 {[%clk 0:00:10.5]} 36.
Qxb6 {[%clk 0:00:05.7]} 36... Ke8 {[%clk 0:00:09.4]} 37. Qxb3 {[%clk 0:00:05.7]}
37... Qf6 {[%clk 0:00:07.5]} 38. Qg8+ {[%clk 0:00:05.8]} 38... Qf8 {[%clk
0:00:06.9]} 39. Qe6+ {[%clk 0:00:05.4]} 39... Qe7 {[%clk 0:00:06.6]} 40. Qxe7#
{[%clk 0:00:06.3]} 1-0

[Event "Early-Titled-Tuesday-Blitz-December-26-2023"]
[Site "Chess.com"]
[Date "2023.12.26"]
[Round "11"]
[White "elchacal664"]
[Black "Klavdia_Nik"]
[Result "1/2-1/2"]
[WhiteElo "2270"]
[BlackElo "2010"]
[TimeControl "180+1"]
[EndTime "10:05:48 PST"]
[Termination "Game drawn - insufficient material"]

1. e4 {[%clk 0:03:00.9]} 1... c5 {[%clk 0:02:54.4]} 2. c3 {[%clk 0:03:00.4]}
2... b6 {[%clk 0:02:51.4]} 3. d4 {[%clk 0:02:58.2]} 3... Bb7 {[%clk 0:02:51.9]}
4. f3 {[%clk 0:02:50]} 4... g6 {[%clk 0:02:50.6]} 5. Be3 {[%clk 0:02:48.2]} 5...
Bg7 {[%clk 0:02:51]} 6. Qd2 {[%clk 0:02:48.3]} 6... d6 {[%clk 0:02:50.4]} 7. h4
{[%clk 0:02:46.4]} 7... h5 {[%clk 0:02:49.6]} 8. Nh3 {[%clk 0:02:45.8]} 8... Nf6
{[%clk 0:02:47.9]} 9. Ng5 {[%clk 0:02:45.9]} 9... a6 {[%clk 0:02:45.4]} 10. Na3
{[%clk 0:02:44.3]} 10... Qc7 {[%clk 0:02:37.2]} 11. Bc4 {[%clk 0:02:41.6]} 11...
O-O {[%clk 0:02:30.6]} 12. dxc5 {[%clk 0:02:32.3]} 12... bxc5 {[%clk 0:02:22.4]}
13. O-O-O {[%clk 0:02:26.1]} 13... Nc6 {[%clk 0:02:16.8]} 14. Nxf7 {[%clk
0:02:04.4]} 14... Rxf7 {[%clk 0:02:14.4]} 15. Bxf7+ {[%clk 0:02:05.3]} 15...
Kxf7 {[%clk 0:02:14.3]} 16. f4 {[%clk 0:02:01.8]} 16... Ng4 {[%clk 0:02:01.5]}
17. f5 {[%clk 0:01:55.7]} 17... Nxe3 {[%clk 0:01:50]} 18. fxg6+ {[%clk
0:01:55.3]} 18... Kxg6 {[%clk 0:01:48.9]} 19. Rh3 {[%clk 0:01:45]} 19... Nxd1
{[%clk 0:01:31.2]} 20. Qg5+ {[%clk 0:01:43.7]} 20... Kh7 {[%clk 0:01:30.7]} 21.
Qxh5+ {[%clk 0:01:40.3]} 21... Bh6+ {[%clk 0:01:30.5]} 22. Kxd1 {[%clk
0:01:40.5]} 22... e6 {[%clk 0:01:08.3]} 23. Rf3 {[%clk 0:01:35.1]} 23... Ne5
{[%clk 0:01:08.3]} 24. Rf6 {[%clk 0:01:32.1]} 24... Qg7 {[%clk 0:01:07]} 25.
Rxe6 {[%clk 0:01:27.7]} 25... Qg4+ {[%clk 0:00:59.9]} 26. Qxg4 {[%clk
0:01:26.3]} 26... Nxg4 {[%clk 0:01:00.8]} 27. Re7+ {[%clk 0:01:25.8]} 27... Kg6
{[%clk 0:01:00.6]} 28. Rxb7 {[%clk 0:01:26.3]} 28... Re8 {[%clk 0:00:55.5]} 29.
Rb6 {[%clk 0:01:14.9]} 29... Re6 {[%clk 0:00:52.9]} 30. Nc4 {[%clk 0:01:13.2]}
30... Bf4 {[%clk 0:00:52.1]} 31. Rxa6 {[%clk 0:01:12.4]} 31... Nf2+ {[%clk
0:00:51.3]} 32. Kc2 {[%clk 0:01:10.4]} 32... Nxe4 {[%clk 0:00:52.2]} 33. g4
{[%clk 0:01:07.7]} 33... Nf2 {[%clk 0:00:48.9]} 34. g5 {[%clk 0:01:03.7]} 34...
Kh5 {[%clk 0:00:45.9]} 35. b4 {[%clk 0:00:57.8]} 35... cxb4 {[%clk 0:00:41.4]}
36. cxb4 {[%clk 0:00:58.7]} 36... Kxh4 {[%clk 0:00:38.2]} 37. g6 {[%clk
0:00:57.7]} 37... Rxg6 {[%clk 0:00:35.4]} 38. b5 {[%clk 0:00:57.9]} 38... Ne4
{[%clk 0:00:33.2]} 39. b6 {[%clk 0:00:56.1]} 39... Nc5 {[%clk 0:00:33.3]} 40.
Ra8 {[%clk 0:00:53.5]} 40... d5 {[%clk 0:00:29.5]} 41. Na5 {[%clk 0:00:53.2]}
41... Rxb6 {[%clk 0:00:28.6]} 42. Rh8+ {[%clk 0:00:52.9]} 42... Kg3 {[%clk
0:00:28.3]} 43. Rd8 {[%clk 0:00:52.4]} 43... Rd6 {[%clk 0:00:20.2]} 44. Rxd6
{[%clk 0:00:51.1]} 44... Bxd6 {[%clk 0:00:21.1]} 45. Kc3 {[%clk 0:00:47.6]}
45... Be5+ {[%clk 0:00:16.4]} 46. Kb4 {[%clk 0:00:47.7]} 46... Nd3+ {[%clk
0:00:15.8]} 47. Kb5 {[%clk 0:00:47.4]} 47... Kf4 {[%clk 0:00:15]} 48. Nc6 {[%clk
0:00:45.6]} 48... Bc3 {[%clk 0:00:13.7]} 49. a4 {[%clk 0:00:45.6]} 49... Ke4
{[%clk 0:00:12.7]} 50. a5 {[%clk 0:00:46.1]} 50... Ne5 {[%clk 0:00:12]} 51. Nd8
{[%clk 0:00:29.6]} 51... Bxa5 {[%clk 0:00:09.3]} 52. Kxa5 {[%clk 0:00:28]} 52...
d4 {[%clk 0:00:10.2]} 53. Ne6 {[%clk 0:00:27.9]} 53... d3 {[%clk 0:00:09.2]} 54.
Nc5+ {[%clk 0:00:28.5]} 54... Ke3 {[%clk 0:00:09.2]} 55. Nxd3 {[%clk 0:00:29.4]}
1/2-1/2

[Event "Early-Titled-Tuesday-Blitz-December-26-2023"]
[Site "Chess.com"]
[Date "2023.12.26"]
[Round "11"]
[White "Vincent_Vega95"]
[Black "Angry_Twin"]
[Result "0-1"]
[WhiteElo "2854"]
[BlackElo "2955"]
[TimeControl "180+1"]
[EndTime "10:05:50 PST"]
[Termination "Angry_Twin won by resignation"]

1. d4 {[%clk 0:03:00.9]} 1... Nf6 {[%clk 0:02:59.8]} 2. c4 {[%clk 0:03:00.9]}
2... e6 {[%clk 0:02:59.9]} 3. Nc3 {[%clk 0:03:00.5]} 3... Bb4 {[%clk 0:02:59.9]}
4. e3 {[%clk 0:03:01]} 4... d5 {[%clk 0:02:59.4]} 5. a3 {[%clk 0:03:00.8]} 5...
Bxc3+ {[%clk 0:02:59.5]} 6. bxc3 {[%clk 0:03:01.7]} 6... c6 {[%clk 0:02:59.8]}
7. a4 {[%clk 0:03:01.1]} 7... O-O {[%clk 0:03:00.2]} 8. Nf3 {[%clk 0:03:00.9]}
8... b6 {[%clk 0:02:59.4]} 9. Nd2 {[%clk 0:03:00]} 9... Ba6 {[%clk 0:02:58.3]}
10. Be2 {[%clk 0:03:00.3]} 10... Re8 {[%clk 0:02:57.8]} 11. O-O {[%clk
0:03:00.2]} 11... Qc8 {[%clk 0:02:56.9]} 12. Bb2 {[%clk 0:02:53.2]} 12... Nbd7
{[%clk 0:02:51]} 13. Re1 {[%clk 0:02:53.4]} 13... c5 {[%clk 0:02:47.6]} 14. Rc1
{[%clk 0:02:52.7]} 14... dxc4 {[%clk 0:02:44.9]} 15. Nxc4 {[%clk 0:02:52.3]}
15... Qc7 {[%clk 0:02:37.4]} 16. Qb3 {[%clk 0:02:42.2]} 16... Bb7 {[%clk
0:02:35.1]} 17. h3 {[%clk 0:02:32.1]} 17... Bd5 {[%clk 0:02:31.7]} 18. Qa3
{[%clk 0:02:27.7]} 18... Ne4 {[%clk 0:02:29.9]} 19. Bf1 {[%clk 0:02:19.7]} 19...
Rac8 {[%clk 0:02:22.8]} 20. Red1 {[%clk 0:02:19.2]} 20... Ng5 {[%clk 0:02:11.3]}
21. Nd2 {[%clk 0:02:14.4]} 21... c4 {[%clk 0:01:50]} 22. a5 {[%clk 0:01:20.9]}
22... b5 {[%clk 0:01:47]} 23. Qb4 {[%clk 0:01:19.4]} 23... a6 {[%clk 0:01:46.2]}
24. Ba3 {[%clk 0:01:20]} 24... f5 {[%clk 0:01:41.3]} 25. Ra1 {[%clk 0:01:19.7]}
25... Nf6 {[%clk 0:01:38.2]} 26. Qd6 {[%clk 0:01:16.5]} 26... Qb7 {[%clk
0:01:35.3]} 27. f3 {[%clk 0:01:13.2]} 27... Qa8 {[%clk 0:01:15.6]} 28. Qg3
{[%clk 0:01:11.1]} 28... Nf7 {[%clk 0:01:14.5]} 29. Qf2 {[%clk 0:01:06.4]} 29...
e5 {[%clk 0:01:11.8]} 30. Re1 {[%clk 0:01:05.7]} 30... e4 {[%clk 0:01:03.6]} 31.
f4 {[%clk 0:01:00.3]} 31... Be6 {[%clk 0:01:02.3]} 32. Be2 {[%clk 0:00:58.5]}
32... Nd5 {[%clk 0:01:02.6]} 33. Rec1 {[%clk 0:00:58.2]} 33... Qb7 {[%clk
0:00:50.6]} 34. Bc5 {[%clk 0:00:56.5]} 34... Kh8 {[%clk 0:00:50.6]} 35. g4
{[%clk 0:00:56.4]} 35... g5 {[%clk 0:00:37.2]} 36. fxg5 {[%clk 0:00:50.1]} 36...
Nxg5 {[%clk 0:00:36.6]} 37. Kh2 {[%clk 0:00:44.6]} 37... f4 {[%clk 0:00:36.6]}
38. Bd6 {[%clk 0:00:40]} 38... fxe3 {[%clk 0:00:37]} 39. Be5+ {[%clk 0:00:40.2]}
39... Kg8 {[%clk 0:00:37.6]} 40. Qh4 {[%clk 0:00:39.4]} 40... Qe7 {[%clk
0:00:37]} 41. Rf1 {[%clk 0:00:21.3]} 41... exd2 {[%clk 0:00:28.7]} 42. Qh6
{[%clk 0:00:21.6]} 42... Rf8 {[%clk 0:00:19.4]} 43. h4 {[%clk 0:00:21.9]} 43...
Nf3+ {[%clk 0:00:19.4]} 44. Bxf3 {[%clk 0:00:22.1]} 44... Rxf3 {[%clk 0:00:20]}
45. Rxf3 {[%clk 0:00:22]} 45... exf3 {[%clk 0:00:20.9]} 46. g5 {[%clk
0:00:22.9]} 46... Qf7 {[%clk 0:00:18.7]} 47. h5 {[%clk 0:00:23.1]} 47... Ne7
{[%clk 0:00:13.6]} 48. g6 {[%clk 0:00:23.1]} 48... Nxg6 {[%clk 0:00:13.3]} 49.
hxg6 {[%clk 0:00:21.1]} 49... Qxg6 {[%clk 0:00:14.2]} 50. Rg1 {[%clk 0:00:21]}
50... Qxg1+ {[%clk 0:00:14.8]} 51. Kxg1 {[%clk 0:00:21.7]} 51... d1=Q+ {[%clk
0:00:15.4]} 52. Kh2 {[%clk 0:00:21.7]} 52... Qe2+ {[%clk 0:00:15.8]} 53. Kg3
{[%clk 0:00:20.7]} 53... Qg2+ {[%clk 0:00:16.4]} 0-1

[Event "Early-Titled-Tuesday-Blitz-December-26-2023"]
[Site "Chess.com"]
[Date "2023.12.26"]
[Round "11"]
[White "snowlord"]
[Black "TanitoluwaAps116"]
[Result "0-1"]
[WhiteElo "2892"]
[BlackElo "2741"]
[TimeControl "180+1"]
[EndTime "10:05:51 PST"]
[Termination "TanitoluwaAps116 won on time"]

1. e4 {[%clk 0:03:00.9]} 1... c5 {[%clk 0:02:48]} 2. a4 {[%clk 0:03:01.1]} 2...
Nc6 {[%clk 0:02:46.6]} 3. Bb5 {[%clk 0:03:00.9]} 3... g6 {[%clk 0:02:45.9]} 4.
h4 {[%clk 0:02:59.6]} 4... h5 {[%clk 0:02:45.2]} 5. Ra3 {[%clk 0:02:58.3]} 5...
Bg7 {[%clk 0:02:45]} 6. Rg3 {[%clk 0:02:58.4]} 6... d6 {[%clk 0:02:40.2]} 7. Nc3
{[%clk 0:02:56.3]} 7... a6 {[%clk 0:02:39.8]} 8. Bc4 {[%clk 0:02:50.6]} 8... Be5
{[%clk 0:02:36.3]} 9. Re3 {[%clk 0:02:42]} 9... Bg4 {[%clk 0:02:12.6]} 10. f3
{[%clk 0:02:25.6]} 10... Bd7 {[%clk 0:02:07.8]} 11. d3 {[%clk 0:02:10.2]} 11...
Bd4 {[%clk 0:02:00.8]} 12. Re2 {[%clk 0:01:56.5]} 12... e6 {[%clk 0:02:00.5]}
13. Kf1 {[%clk 0:01:49.8]} 13... Nge7 {[%clk 0:01:52.8]} 14. Re1 {[%clk
0:01:44.6]} 14... Qc7 {[%clk 0:01:35.3]} 15. Nge2 {[%clk 0:01:25.1]} 15... Bg7
{[%clk 0:01:29.6]} 16. Bg5 {[%clk 0:01:18.6]} 16... O-O-O {[%clk 0:01:27.4]} 17.
Qd2 {[%clk 0:01:15]} 17... Rhe8 {[%clk 0:01:25.4]} 18. Bb3 {[%clk 0:01:03.5]}
18... Nb4 {[%clk 0:01:09.1]} 19. d4 {[%clk 0:00:41.8]} 19... cxd4 {[%clk
0:01:01.3]} 20. Nxd4 {[%clk 0:00:41.4]} 20... Nbc6 {[%clk 0:00:46.8]} 21. Nce2
{[%clk 0:00:35.5]} 21... Kb8 {[%clk 0:00:42]} 22. Nxc6+ {[%clk 0:00:30.6]} 22...
Bxc6 {[%clk 0:00:41.7]} 23. Nd4 {[%clk 0:00:29.6]} 23... Rd7 {[%clk 0:00:41.3]}
24. c3 {[%clk 0:00:25.4]} 24... Qb6 {[%clk 0:00:34]} 25. Be3 {[%clk 0:00:21.9]}
25... Bxd4 {[%clk 0:00:33.3]} 26. Qxd4 {[%clk 0:00:15.8]} 26... Qxb3 {[%clk
0:00:32.1]} 27. Ra1 {[%clk 0:00:08.2]} 27... e5 {[%clk 0:00:26]} 28. Qa7+ {[%clk
0:00:07.7]} 28... Kc7 {[%clk 0:00:20.1]} 29. a5 {[%clk 0:00:04.9]} 29... Nc8
{[%clk 0:00:18.9]} 30. Qa8 {[%clk 0:00:05.3]} 30... Kd8 {[%clk 0:00:13.3]} 31.
Kg1 {[%clk 0:00:04.6]} 31... Ke7 {[%clk 0:00:13]} 32. Qb8 {[%clk 0:00:04.3]}
32... Kf8 {[%clk 0:00:09.9]} 33. Bh6+ {[%clk 0:00:04.3]} 33... Kg8 {[%clk
0:00:09.8]} 34. Kh2 {[%clk 0:00:04.2]} 34... Qe6 {[%clk 0:00:09.9]} 35. Be3
{[%clk 0:00:03.8]} 35... Ne7 {[%clk 0:00:07.2]} 36. Qa7 {[%clk 0:00:03.6]} 36...
Nc8 {[%clk 0:00:07]} 37. Qb8 {[%clk 0:00:03.7]} 37... Ne7 {[%clk 0:00:07.6]} 38.
Qa7 {[%clk 0:00:04]} 38... d5 {[%clk 0:00:08.5]} 39. exd5 {[%clk 0:00:02.7]}
39... Nxd5 {[%clk 0:00:08.5]} 40. Bg5 {[%clk 0:00:03.4]} 40... Nf4 {[%clk
0:00:08]} 41. Rae1 {[%clk 0:00:02.8]} 41... Rd2 {[%clk 0:00:06.8]} 42. Bxf4
{[%clk 0:00:02]} 42... Rxg2+ {[%clk 0:00:05.7]} 43. Kxg2 {[%clk 0:00:02]} 43...
Qg4+ {[%clk 0:00:05.8]} 44. Bg3 {[%clk 0:00:01.7]} 44... Qxf3+ {[%clk
0:00:05.5]} 0-1